bitfinex/quotes_SOLUSD_20230112
["timestamp","ask_amount","ask_price","bid_price","bid_amount"]
[1673525375284,160.5870082,16.082,16.067,66.68]
[1673525375590,13.2,16.08,16.065,130.7664]
[1673525375898,46.65,16.079,16.065,130.7664]
[1673525377682,46.65,16.079,16.066,20.0]
[1673525383476,13.2,16.08,16.066,20.0]
[1673525383891,13.2,16.08,16.066,66.68]
[1673525385457,46.64,16.081,16.066,66.68]
[1673525386821,160.5870082,16.082,16.066,66.68]
[1673525387027,160.5870082,16.082,16.067,15.66122703]
[1673525387242,113.9470082,16.082,16.068,66.68]
[1673525387989,113.9470082,16.082,16.068,81.38122703]
[1673525388410,113.9470082,16.082,16.069,1.92]
[1673525388938,113.9470082,16.082,16.068,66.68]
[1673525389158,160.5870082,16.082,16.068,20.0]
[1673525389359,160.5870082,16.082,16.066,66.68]
[1673525389565,13.13,16.08,16.065,20.0]
[1673525389773,63.65,16.079,16.064,20.0]
[1673525391040,20.0,16.078,16.064,20.0]
[1673525391237,63.65,16.077,16.062,20.0]
[1673525392721,63.65,16.077,16.062,40.0]
[1673525393964,63.65,16.077,16.064,20.0]
[1673525394191,63.65,16.077,16.065,20.0]
[1673525394832,17.0,16.077,16.065,20.0]
[1673525395145,17.0,16.078,16.065,20.0]
[1673525395351,46.65,16.077,16.065,20.0]
[1673525396940,46.65,16.079,16.066,17.0]
[1673525397861,46.65,16.079,16.066,37.0]
[1673525401584,46.65,16.079,16.065,20.0]
[1673525401788,17.0,16.078,16.064,20.0]
[1673525402089,46.65,16.077,16.063,20.0]
[1673525402411,17.0,16.076,16.063,20.0]
[1673525402601,46.66,16.075,16.063,20.0]
[1673525403123,46.65,16.079,16.063,20.0]
[1673525403331,17.0,16.078,16.063,20.0]
[1673525403544,46.65,16.077,16.063,20.0]
[1673525404807,17.0,16.076,16.063,20.0]
[1673525408100,17.0,16.076,16.062,20.0]
[1673525408283,17.0,16.076,16.063,17.0]
[1673525408494,17.0,16.076,16.064,20.0]
[1673525411564,63.18,16.069,16.053,20.0]
[1673525418375,46.18,16.069,16.053,20.0]
[1673525418692,65.85,16.07,16.055,20.0]
[1673525419008,13.08,16.07,16.057,20.0]
[1673525419222,13.08,16.07,16.058,46.71]
[1673525419425,13.08,16.07,16.059,20.0]
[1673525419849,17.0,16.069,16.059,20.0]
[1673525420501,13.08,16.07,16.059,20.0]
[1673525421427,162.7281,16.074,16.059,20.0]
[1673525421861,17.0,16.073,16.059,20.0]
[1673525425537,162.7281,16.074,16.059,20.0]
[1673525425754,162.7281,16.074,16.06,13.11]
[1673525426152,116.0681,16.074,16.06,59.81]
[1673525426361,46.65,16.079,16.062,20.0]
[1673525426578,46.65,16.079,16.063,20.0]
[1673525427624,17.0,16.078,16.063,20.0]
[1673525427953,46.65,16.079,16.063,20.0]
[1673525427954,46.65,16.077,16.063,20.0]
[1673525428171,46.65,16.079,16.063,20.0]
[1673525428493,46.65,16.079,16.064,46.69]
[1673525428803,46.65,16.079,16.065,20.0]
[1673525428985,46.65,16.079,16.065,139.1045]
[1673525429196,46.65,16.079,16.066,20.0]
[1673525431415,17.0,16.078,16.066,20.0]
[1673525431972,17.0,16.078,16.065,20.0]
[1673525432290,17.0,16.078,16.064,19.5]
[1673525432291,46.65,16.077,16.064,19.5]
[1673525432601,37.0,16.076,16.06,33.11]
[1673525432799,46.66,16.075,16.06,20.0]
[1673525433004,118.3651,16.074,16.06,20.0]
[1673525433865,118.3651,16.074,16.062,17.0]
[1673525434614,118.3651,16.074,16.06,20.0]
[1673525435441,17.0,16.073,16.06,20.0]
[1673525436379,118.3651,16.074,16.06,20.0]
[1673525437425,17.0,16.073,16.06,20.0]
[1673525440485,118.3651,16.074,16.06,20.0]
[1673525444587,118.3651,16.074,16.062,17.0]
[1673525444794,118.3651,16.074,16.06,20.0]
[1673525445008,63.66,16.073,16.06,20.0]
[1673525445408,165.0251,16.074,16.06,33.11]
[1673525445621,46.65,16.079,16.063,20.0]
[1673525445834,46.65,16.079,16.064,20.0]
[1673525446057,53.60052,16.079,16.064,20.0]
[1673525446460,20.0,16.077,16.061,20.0]
[1673525446676,66.66,16.076,16.061,20.0]
[1673525446888,17.0,16.075,16.061,20.0]
[1673525447223,46.66,16.074,16.061,20.0]
[1673525448466,46.65,16.077,16.062,17.0]
[1673525448685,46.65,16.077,16.063,20.0]
[1673525449009,46.65,16.077,16.062,17.0]
[1673525449211,20.0,16.076,16.062,17.0]
[1673525449426,46.66,16.075,16.062,17.0]
[1673525452471,17.0,16.074,16.06,33.11]
[1673525452682,126.2077,16.074,16.06,33.11]
[1673525454384,6.95052,16.078,16.061,46.7]
[1673525454693,46.64,16.081,16.063,20.0]
[1673525454908,52.0591082,16.082,16.064,47.65]
[1673525455094,52.0591082,16.082,16.066,20.0]
[1673525455297,52.0591082,16.082,16.068,20.0]
[1673525457087,52.0591082,16.082,16.068,19.5]
[1673525457297,52.0591082,16.082,16.069,17.0]
[1673525458244,5.4191082,16.082,16.07,13.2]
[1673525458457,5.4191082,16.082,16.071,20.0]
[1673525458659,5.4191082,16.082,16.073,20.0]
[1673525458881,5.4191082,16.082,16.074,20.0]
[1673525463706,5.4191082,16.082,16.072,20.0]
[1673525465515,5.4191082,16.082,16.064,134.1371]
[1673525465516,13.2,16.08,16.065,117.5102]
[1673525465703,63.65,16.079,16.066,20.0]
[1673525467519,63.65,16.079,16.065,137.5102]
[1673525467728,70.60052,16.079,16.065,117.5102]
[1673525467923,70.60052,16.079,16.066,40.0]
[1673525468777,70.60052,16.079,16.066,20.0]
[1673525469511,70.60052,16.079,16.066,40.0]
[1673525469721,46.65,16.079,16.066,40.0]
[1673525470034,46.65,16.079,16.067,20.0]
[1673525470234,115.1065,16.081,16.067,66.68]
[1673525474875,114.6065,16.081,16.067,66.68]
[1673525475064,5.4191082,16.082,16.07,13.2]
[1673525475281,5.4191082,16.082,16.071,66.67]
[1673525475809,5.4191082,16.082,16.072,20.0]
[1673525476026,5.4191082,16.082,16.073,20.0]
[1673525476221,5.4191082,16.082,16.074,17.0]
[1673525476423,5.4191082,16.082,16.075,20.0]
[1673525476864,5.4191082,16.082,16.075,40.0]
[1673525478332,8.2e-06,16.082,16.076,20.0]
[1673525480646,8.2e-06,16.082,16.076,19.5]
[1673525483577,8.2e-06,16.082,16.077,0.96]
[1673525483787,8.2e-06,16.082,16.077,17.96]
[1673525483992,8.2e-06,16.082,16.078,46.65]
[1673525485055,8.2e-06,16.082,16.079,20.0]
[1673525488116,8.2e-06,16.082,16.078,20.0]
[1673525488512,8.2e-06,16.082,16.079,17.0]
[1673525491159,8.2e-06,16.082,16.077,46.65]
[1673525491342,8.2e-06,16.082,16.076,19.5]
[1673525492711,8.2e-06,16.082,16.077,46.65]
[1673525492939,8.2e-06,16.082,16.076,66.16]
[1673525493356,8.2e-06,16.082,16.077,17.0]
[1673525493756,46.59,16.097,16.078,61.89449012]
[1673525493972,26.95052,16.096,16.078,15.24449012]
[1673525494182,73.55052,16.095,16.076,46.66]
[1673525494626,20.0,16.094,16.077,20.0]
[1673525494940,46.61,16.093,16.077,20.0]
[1673525495144,46.6,16.094,16.08,13.2]
[1673525495353,46.6,16.096,16.081,20.0]
[1673525495554,17.0,16.095,16.081,20.0]
[1673525495764,46.6,16.094,16.081,20.0]
[1673525497576,108.6515,16.097,16.082,20.0]
[1673525497770,108.6515,16.097,16.084,20.0]
[1673525497992,108.6515,16.097,16.085,20.0]
[1673525499456,63.6,16.096,16.085,20.0]
[1673525499675,63.6,16.096,16.084,40.0]
[1673525501556,46.6,16.096,16.084,40.0]
[1673525502288,17.0,16.095,16.084,40.0]
[1673525506862,17.0,16.095,16.084,39.5]
[1673525507802,46.6,16.096,16.084,39.5]
[1673525508122,108.6515,16.097,16.086,20.0]
[1673525509482,108.6515,16.097,16.087,17.0]
[1673525509688,46.59,16.099,16.087,17.0]
[1673525510006,46.58,16.102,16.09,13.11]
[1673525510209,46.57,16.106,16.09,13.11]
[1673525510419,20.0,16.105,16.09,13.11]
[1673525510743,46.57,16.104,16.09,13.11]
[1673525512095,20.0,16.105,16.09,13.11]
[1673525512309,46.57,16.104,16.09,13.11]
[1673525515360,46.57,16.104,16.091,20.96]
[1673525515576,115.9412,16.107,16.091,67.57]
[1673525515800,115.9412,16.107,16.093,20.0]
[1673525515978,115.9412,16.107,16.094,46.6]
[1673525516188,115.9412,16.107,16.096,20.0]
[1673525516506,115.9412,16.107,16.097,46.59]
[1673525516716,115.9412,16.107,16.098,20.0]
[1673525517356,123.141267,16.11,16.098,20.0]
[1673525517789,123.141267,16.11,16.1,13.2]
[1673525518220,123.141267,16.11,16.101,17.0]
[1673525518929,98.3011,16.11,16.101,17.0]
[1673525519890,98.3011,16.11,16.102,20.0]
[1673525520085,98.3011,16.11,16.098,66.59]
[1673525520420,111.5011,16.11,16.098,20.0]
[1673525520629,17.0,16.109,16.098,20.0]
[1673525521032,144.8611,16.11,16.098,20.0]
[1673525521237,98.3011,16.11,16.098,66.59]
[1673525521660,98.3011,16.11,16.098,20.0]
[1673525522501,98.3011,16.11,16.096,66.6]
[1673525522725,17.0,16.109,16.096,20.0]
[1673525522937,46.56,16.108,16.096,20.0]
[1673525523145,17.0,16.107,16.096,20.0]
[1673525523461,17.0,16.107,16.095,20.0]
[1673525526830,46.56,16.108,16.095,20.0]
[1673525527243,6.95052,16.109,16.095,20.0]
[1673525527966,20.0,16.107,16.095,20.0]
[1673525528174,17.0,16.106,16.095,20.0]
[1673525528385,46.57,16.107,16.095,20.0]
[1673525528613,17.0,16.106,16.096,20.0]
[1673525528823,17.0,16.106,16.093,40.0]
[1673525529041,17.0,16.106,16.093,20.0]
[1673525529258,17.0,16.107,16.087,66.62]
[1673525529460,46.57,16.105,16.087,66.62]
[1673525529680,150.4198,16.104,16.087,66.62]
[1673525529874,20.0,16.102,16.087,66.62]
[1673525530080,112.9765,16.101,16.087,66.62]
[1673525530298,112.9765,16.101,16.09,13.15]
[1673525531988,112.9765,16.101,16.087,66.62]
[1673525535352,112.9765,16.101,16.088,17.0]
[1673525535563,112.9765,16.101,16.089,20.0]
[1673525536090,112.9765,16.101,16.09,17.0]
[1673525537435,112.9765,16.101,16.089,20.0]
[1673525539974,112.9765,16.101,16.09,17.0]
[1673525541652,46.58,16.103,16.09,17.0]
[1673525541868,20.0,16.109,16.091,20.0]
[1673525541869,46.56,16.108,16.091,20.0]
[1673525542066,46.56,16.108,16.092,20.0]
[1673525542278,46.56,16.108,16.093,20.0]
[1673525543117,17.0,16.107,16.093,20.0]
[1673525543443,46.57,16.106,16.095,20.0]
[1673525543656,46.57,16.106,16.096,20.0]
[1673525544703,46.57,16.106,16.095,20.0]
[1673525546575,115.9326,16.109,16.095,20.0]
[1673525546576,46.56,16.108,16.095,20.0]
[1673525547093,46.56,16.108,16.094,20.0]
[1673525548171,17.0,16.107,16.094,20.0]
[1673525548576,46.56,16.108,16.094,20.0]
[1673525548785,17.0,16.107,16.094,20.0]
[1673525551949,46.56,16.108,16.094,20.0]
[1673525555853,110.0349,16.101,16.086,66.63]
[1673525556995,63.59,16.1,16.086,20.0]
[1673525557426,63.59,16.1,16.084,20.0]
[1673525557748,180.1709,16.1,16.085,20.0]
[1673525565103,193.3209,16.1,16.084,20.0]
[1673525565314,26.95052,16.099,16.084,20.0]
[1673525565504,63.59,16.098,16.084,20.0]
[1673525565942,46.59,16.098,16.084,40.0]
[1673525566168,53.54052,16.099,16.084,40.0]
[1673525566349,53.54052,16.099,16.085,17.0]
[1673525566561,53.54052,16.099,16.085,37.0]
[1673525566789,46.59,16.099,16.086,20.0]
[1673525566980,46.59,16.099,16.087,37.0]
[1673525567194,129.7309,16.1,16.087,37.0]
[1673525567195,116.5809,16.1,16.087,37.0]
[1673525567404,46.59,16.099,16.087,37.0]
[1673525567620,163.1709,16.1,16.087,37.0]
[1673525568582,163.1709,16.1,16.087,17.0]
[1673525572781,17.0,16.099,16.086,20.0]
[1673525573092,163.1709,16.1,16.086,20.0]
[1673525574354,163.1709,16.1,16.087,17.0]
[1673525575502,17.0,16.099,16.086,20.0]
[1673525576031,17.0,16.099,16.085,20.0]
[1673525578221,17.0,16.099,16.086,20.0]
[1673525579299,163.1709,16.1,16.086,20.0]
[1673525580218,116.5809,16.1,16.087,17.0]
[1673525580431,163.1709,16.1,16.087,17.0]
[1673525581829,17.0,16.099,16.086,20.0]
[1673525582981,17.0,16.099,16.085,40.0]
[1673525584228,163.1709,16.1,16.085,40.0]
[1673525584653,163.1709,16.1,16.086,20.0]
[1673525584851,116.5809,16.1,16.088,20.0]
[1673525585601,116.5809,16.1,16.089,17.0]
[1673525589181,110.0349,16.101,16.089,17.0]
[1673525595380,110.0349,16.101,16.09,13.05]
[1673525595593,110.0349,16.101,16.091,20.0]
[1673525597271,110.0349,16.101,16.087,20.0]
[1673525597485,63.59,16.1,16.087,20.0]
[1673525597801,46.59,16.1,16.087,20.0]
[1673525598006,19.14496728,16.106,16.087,20.0]
[1673525598007,46.57,16.106,16.09,65.63]
[1673525598223,161.7094,16.109,16.091,66.61]
[1673525598542,161.7094,16.109,16.092,20.0]
[1673525598755,161.7094,16.109,16.093,20.0]
[1673525598950,115.1494,16.109,16.094,66.6]
[1673525599159,115.1494,16.109,16.095,20.0]
[1673525601049,115.1494,16.109,16.096,17.0]
[1673525604012,144.8611,16.11,16.096,17.0]
[1673525604344,98.3011,16.11,16.1,13.15]
[1673525605048,98.3011,16.11,16.101,17.0]
[1673525605267,46.55,16.114,16.101,17.0]
[1673525605490,46.55,16.114,16.102,20.0]
[1673525605674,46.55,16.114,16.102,40.0]
[1673525606215,71.382114,16.114,16.102,40.0]
[1673525606407,24.832114,16.114,16.103,65.1403532]
[1673525606618,24.832114,16.114,16.105,20.0]
[1673525606822,24.832114,16.114,16.106,20.0]
[1673525610307,24.832114,16.114,16.106,37.6003532]
[1673525611783,1.4e-05,16.114,16.106,37.6003532]
[1673525612196,1.4e-05,16.114,16.106,20.0]
[1673525612409,1.4e-05,16.114,16.104,20.0]
[1673525612721,1.4e-05,16.114,16.103,20.0]
[1673525613365,1.4e-05,16.114,16.104,20.0]
[1673525615988,1.4e-05,16.114,16.104,37.6003532]
[1673525616197,7.8407999,16.116,16.104,37.6003532]
[1673525616198,7.8407999,16.116,16.105,20.0]
[1673525616729,7.8407999,16.116,16.105,37.6003532]
[1673525617133,7.8407999,16.116,16.106,20.96]
[1673525617343,7.8407999,16.116,16.106,20.0]
[1673525617550,7.8407999,16.116,16.106,37.6003532]
[1673525617764,7.8407999,16.116,16.106,20.0]
[1673525617973,7.8407999,16.116,16.105,20.0]
[1673525618202,7.8407999,16.116,16.106,17.6003532]
[1673525618526,0.0007999,16.116,16.111,20.0]
[1673525618740,0.0007999,16.116,16.112,66.55]
[1673525618923,24.825968,16.119,16.112,66.55]
[1673525619374,24.825968,16.119,16.114,20.0]
[1673525619568,24.825968,16.119,16.114,66.55]
[1673525619790,24.825968,16.119,16.116,20.0]
[1673525621667,24.825968,16.119,16.116,37.6003532]
[1673525621902,24.825968,16.119,16.116,20.0]
[1673525622934,24.825968,16.119,16.116,37.6003532]
[1673525623348,24.825968,16.119,16.116,20.0]
[1673525623674,24.825968,16.119,16.117,17.0]
[1673525627258,114.6314,16.128,16.117,17.0]
[1673525628078,114.6314,16.128,16.115,20.0]
[1673525628498,114.6314,16.128,16.116,17.0]
[1673525630310,114.6314,16.128,16.115,20.0]
[1673525630501,114.6314,16.128,16.114,20.0]
[1673525630502,66.51,16.127,16.114,20.0]
[1673525630707,66.51,16.127,16.111,20.0]
[1673525631154,17.0,16.126,16.111,20.0]
[1673525631459,46.51,16.125,16.111,20.0]
[1673525631670,20.0,16.125,16.111,20.0]
[1673525631865,46.52,16.124,16.111,20.0]
[1673525632292,46.52,16.124,16.111,40.0]
[1673525632831,20.0,16.125,16.111,20.0]
[1673525633140,63.51,16.126,16.111,40.0]
[1673525633357,20.0,16.125,16.111,40.0]
[1673525633554,46.51,16.126,16.111,40.0]
[1673525633882,20.0,16.124,16.11,13.02]
[1673525634074,46.52,16.123,16.11,13.02]
[1673525636086,46.52,16.124,16.11,13.02]
[1673525639541,17.0,16.123,16.11,13.02]
[1673525639746,46.52,16.122,16.107,20.0]
[1673525639973,17.0,16.121,16.103,66.58]
[1673525640181,59.68,16.12,16.104,20.0]
[1673525640495,17.0,16.119,16.104,20.0]
[1673525640709,46.53,16.118,16.104,20.0]
[1673525641339,46.53,16.118,16.105,20.0]
[1673525641532,46.53,16.118,16.107,20.0]
[1673525642588,115.7695,16.119,16.107,20.0]
[1673525644587,115.7695,16.119,16.105,20.0]
[1673525644796,115.7695,16.119,16.106,20.0]
[1673525647548,114.3672,16.121,16.107,38.5603532]
[1673525647737,114.3672,16.121,16.109,20.0]
[1673525648065,46.51,16.127,16.11,0.96]
[1673525648276,46.51,16.127,16.111,20.0]
[1673525648595,46.51,16.127,16.112,66.55]
[1673525648785,46.51,16.127,16.113,20.96]
[1673525648997,223.079,16.128,16.113,20.96]
[1673525649210,223.079,16.128,16.114,20.0]
[1673525649830,46.51,16.127,16.114,20.0]
[1673525650590,223.079,16.128,16.115,0.96]
[1673525650909,223.079,16.128,16.115,20.96]
[1673525651097,223.079,16.128,16.117,20.0]
[1673525653118,223.079,16.128,16.118,17.0]
[1673525654691,223.079,16.128,16.117,20.0]
[1673525655741,223.079,16.128,16.116,20.0]
[1673525656569,223.079,16.128,16.115,20.0]
[1673525656780,223.079,16.128,16.116,20.0]
[1673525657859,223.079,16.128,16.117,17.0]
[1673525660138,223.079,16.128,16.117,37.0]
[1673525660991,24.80756,16.131,16.12,13.15]
[1673525661190,46.48,16.136,16.121,86.53]
[1673525661621,46.48,16.138,16.121,86.53]
[1673525662145,127.04501,16.137,16.121,86.53]
[1673525663186,127.04501,16.137,16.122,17.6003532]
[1673525663409,127.04501,16.137,16.124,20.0]
[1673525663606,127.04501,16.137,16.125,20.0]
[1673525664463,46.48,16.136,16.125,20.0]
[1673525664678,46.48,16.136,16.122,20.0]
[1673525666045,46.48,16.136,16.122,37.6003532]
[1673525666364,127.04501,16.137,16.122,37.6003532]
[1673525666566,46.48,16.136,16.122,37.6003532]
[1673525667176,127.04501,16.137,16.123,0.96]
[1673525667391,127.04501,16.137,16.123,20.96]
[1673525667608,127.04501,16.137,16.124,20.0]
[1673525670987,20.0,16.135,16.124,20.0]
[1673525671201,46.49,16.134,16.121,20.0]
[1673525671405,46.48,16.136,16.121,20.0]
[1673525671725,46.48,16.136,16.121,57.6003532]
[1673525671948,127.04501,16.137,16.121,104.1303532]
[1673525672120,127.04501,16.137,16.122,20.0]
[1673525672336,102.2471,16.137,16.122,20.0]
[1673525672545,102.2471,16.137,16.122,37.6003532]
[1673525672772,102.2471,16.137,16.123,20.0]
[1673525673089,127.043849,16.137,16.123,20.0]
[1673525673401,127.043849,16.137,16.124,17.6003532]
[1673525675610,13.09,16.13,16.123,20.0]
[1673525675825,46.5,16.129,16.123,20.0]
[1673525676245,13.09,16.13,16.123,20.0]
[1673525676981,46.5,16.129,16.123,20.0]
[1673525679286,46.48,16.135,16.123,20.0]
[1673525679501,20.0,16.134,16.123,20.0]
[1673525679706,46.49,16.133,16.123,20.0]
[1673525680339,46.49,16.134,16.123,20.0]
[1673525680544,20.0,16.134,16.123,20.0]
[1673525680759,46.49,16.133,16.123,20.0]
[1673525681289,46.49,16.133,16.123,19.5]
[1673525681813,17.0,16.132,16.123,19.5]
[1673525682133,46.5,16.131,16.123,19.5]
[1673525682450,17.0,16.13,16.123,19.5]
[1673525682845,46.5,16.129,16.123,19.5]
[1673525683581,46.49,16.133,16.123,19.5]
[1673525683797,17.0,16.132,16.123,19.5]
[1673525684007,46.5,16.131,16.123,19.5]
[1673525684975,46.49,16.133,16.123,19.5]
[1673525686841,13.09,16.13,16.123,19.5]
[1673525687484,17.0,16.129,16.115,40.0]
[1673525687694,116.1784,16.128,16.116,46.54]
[1673525687924,116.1784,16.128,16.115,86.54]
[1673525688121,116.1784,16.128,16.116,20.0]
[1673525693262,46.48,16.135,16.117,47.5]
[1673525693472,46.48,16.136,16.118,20.0]
[1673525693701,46.48,16.136,16.12,20.0]
[1673525694014,46.48,16.136,16.121,20.0]
[1673525694215,46.48,16.136,16.122,20.0]
[1673525694440,46.48,16.136,16.121,20.0]
[1673525697255,46.48,16.136,16.123,20.0]
[1673525697465,46.48,16.136,16.124,20.0]
[1673525698528,102.2471,16.137,16.124,20.0]
[1673525699151,46.48,16.136,16.124,20.0]
[1673525699791,46.48,16.136,16.123,20.0]
[1673525701046,46.48,16.136,16.12,37.47]
[1673525701047,46.48,16.136,16.121,20.0]
[1673525702634,46.48,16.136,16.12,37.47]
[1673525702635,46.48,16.136,16.113,66.55]
[1673525702827,63.09548728,16.135,16.113,20.0]
[1673525703161,72.58548728,16.134,16.111,135.9389]
[1673525703476,20.0,16.132,16.111,135.9389]
[1673525703671,182.96782,16.131,16.111,135.9389]
[1673525703884,6.95052,16.13,16.111,135.9389]
[1673525704091,46.5,16.129,16.112,66.55]
[1673525704431,46.5,16.129,16.113,20.0]
[1673525704738,114.9777,16.128,16.114,20.0]
[1673525704935,46.51,16.127,16.114,20.0]
[1673525705791,46.51,16.127,16.113,20.0]
[1673525705982,17.0,16.126,16.113,20.0]
[1673525706194,17.0,16.126,16.112,20.0]
[1673525706398,46.51,16.125,16.112,20.0]
[1673525707974,17.0,16.124,16.107,39.99222976]
[1673525708186,17.0,16.124,16.1,107.38]
[1673525708187,53.47052,16.123,16.104,46.57]
[1673525708397,17.0,16.122,16.105,20.0]
[1673525708739,46.53,16.121,16.105,20.0]
[1673525708938,46.53,16.121,16.104,46.57]
[1673525708939,41.44052,16.12,16.104,46.57]
[1673525709253,46.53,16.119,16.102,46.58]
[1673525709499,20.0,16.117,16.101,97.1345]
[1673525709685,46.54,16.116,16.101,143.7145]
[1673525709869,17.0,16.115,16.101,97.1345]
[1673525710200,17.0,16.115,16.096,46.6]
[1673525710391,17.0,16.115,16.097,20.0]
[1673525710725,17.0,16.115,16.098,66.59]
[1673525711250,46.54,16.116,16.099,20.0]
[1673525711456,17.0,16.115,16.1,66.59]
[1673525712621,17.0,16.115,16.1,20.0]
[1673525714174,17.0,16.115,16.101,46.58]
[1673525714391,17.0,16.115,16.102,20.0]
[1673525715017,17.0,16.115,16.099,46.59]
[1673525715018,17.0,16.115,16.1,40.0]
[1673525715229,17.0,16.115,16.101,46.58]
[1673525715434,17.0,16.115,16.102,40.0]
[1673525715657,17.0,16.115,16.102,20.0]
[1673525716812,23.95052,16.115,16.099,40.0]
[1673525717048,23.95052,16.115,16.1,46.59]
[1673525717261,23.95052,16.115,16.101,20.0]
[1673525718090,23.95052,16.115,16.102,46.58]
[1673525718300,23.95052,16.115,16.103,20.0]
[1673525719032,23.95052,16.115,16.101,20.0]
[1673525719263,23.95052,16.115,16.102,46.58]
[1673525719455,23.95052,16.115,16.103,20.0]
[1673525720101,23.95052,16.115,16.102,20.0]
[1673525720296,23.95052,16.115,16.102,66.58]
[1673525720506,23.95052,16.115,16.103,20.0]
[1673525724825,23.95052,16.115,16.102,20.0]
[1673525725868,23.95052,16.115,16.102,40.0]
[1673525726090,23.95052,16.115,16.103,46.58]
[1673525726296,46.53,16.118,16.103,46.58]
[1673525726297,46.53,16.118,16.104,40.0]
[1673525727344,164.7695,16.119,16.106,20.0]
[1673525727648,17.0,16.118,16.106,20.0]
[1673525727865,17.0,16.118,16.104,40.0]
[1673525728616,171.72002,16.119,16.104,40.0]
[1673525728813,118.2395,16.119,16.105,66.57]
[1673525729024,118.2395,16.119,16.106,20.0]
[1673525729340,118.2395,16.119,16.108,20.0]
[1673525730403,118.2395,16.119,16.107,46.57]
[1673525730930,17.0,16.118,16.107,46.57]
[1673525731144,17.0,16.118,16.106,66.57]
[1673525732501,17.0,16.118,16.106,20.0]
[1673525732724,17.0,16.118,16.104,46.57]
[1673525732725,17.0,16.118,16.105,20.0]
[1673525733689,17.0,16.118,16.104,20.0]
[1673525733865,70.48052,16.118,16.103,20.0]
[1673525734074,118.2395,16.119,16.104,66.57]
[1673525734296,125.19002,16.119,16.105,20.0]
[1673525734490,125.19002,16.119,16.106,46.57]
[1673525734701,125.19002,16.119,16.105,66.57]
[1673525735335,17.0,16.118,16.105,66.57]
[1673525736917,17.0,16.118,16.105,20.0]
[1673525737127,17.0,16.118,16.104,40.0]
[1673525737982,23.95052,16.118,16.104,40.0]
[1673525738200,23.95052,16.118,16.104,20.0]
[1673525738611,20.0,16.116,16.104,20.0]
[1673525738799,17.0,16.115,16.104,20.0]